Cogmind - Beta 14 @@@ ROGUE MODE // 2024.10.27 @ 15:17:12 Player: Plexion Result: Self-destructed Performance ------------- Evolutions (5) 2500 Regions Visited (7) 1400 Robots Destroyed (83) 415 Value Destroyed (2701) 2701 Prototype IDs (15) 300 Alien Tech Used (0) 0 Bonus (2307) 2307 TOTAL SCORE: 9623 Bonus ------- Follower Combat Kills 7 Delivered SUBCON Basin 2000 Registered with UFD 300 Cogmind --------- Core Integrity 277/1000 Matter 0/300 Energy 4/100 System Corruption 16% Temperature Cool (0) Movement Walking (140) Location -5/Upper Caves Parts ------- > --- POWER (1) -------- (None) > --- PROPULSION (4) --- Medium Armored Exoskeleton > --- UTILITY (10) ----- Large Storage Unit Advanced Sensor Array Advanced Signal Interpreter Advanced Melee Analysis Suite Advanced Melee Analysis Suite Microactuators Improved Powered Armor Improved Thermal Shield Makeshift Hacking Suite > --- WEAPON (2) ------- Long-range Missile Launcher Companion Sword > --- INVENTORY (15) --- Cold Fusion Reactor Light Antimatter Reactor Medium Armored Exoskeleton Seismic Detector Advanced Hacking Suite Tech Extrapolator Long-range Proton Cannon Dirty Datajack (20) Power Sword Peak State ------------ > --- POWER ------------ Micro Fission Core > --- PROPULSION ------- Spiked Treads Advanced Treads Overtuned Huge Scrapsphere > --- UTILITY ---------- Scrap Suit Huge Storage Unit Advanced Sensor Array Advanced Signal Interpreter Melee Analysis Suite Recoil Nullifier Gun Armor Medium Insulated Plating Makeshift Hacking Suite > --- WEAPON ----------- Greatsword Companion Sword Spear > --- INVENTORY -------- Armored Wheel Antigrav System Antigrav System Antigrav System Medium Storage Unit Large Storage Unit Gravity Neutralizer Seismic Detector Transport Network Coupler Advanced Melee Analysis Suite Advanced Melee Analysis Suite Microactuators Advanced ECM Suite Medium Armor Plating Improved Light Armor Plating Authchip [Propulsion] Authchip [Propulsion] Tech Extrapolator Phase Cannon Grenade Launcher Improved Grenade Launcher Improved Plasma Cutter Spear [Rating: 94] Favorites ----------- Power Subdweller Power Source Engine Subdweller Power Source Power Core Micro Fission Core Reactor Cold Fusion Reactor Propulsion Light Treads Treads Light Treads Leg Medium Armored Exoskeleton Wheel Wheel Utility Huge Storage Unit Device Seismic Detector Storage Huge Storage Unit Processor Advanced Melee Analysis Suite Hackware Makeshift Hacking Suite Protection Improved Powered Armor Weapon Subdweller Machine Gun Energy Cannon Long-range Proton Cannon Ballistic Gun Subdweller Machine Gun Launcher Long-range Missile Launcher Slashing Weapon Companion Sword Piercing Weapon Spear Build | -11 -10 -10 -10 -7 -7 -5 -5 ------- Run | Yrd Mat Min Sub Rec Scr Fac Upp Slots Evolved 10 | . . . . . . 10 . Power . | . . . . . . . . Propulsion 2 | . . . . . . 2 . Utility 8 | . . . . . . 8 . Weapon . | . . . . . . . . Parts Attached 143 | 7 24 6 27 . 15 55 9 Power 11 | 1 2 . 1 . 1 6 . Engine 7 | 1 2 . 1 . 1 2 . Core 2 | . . . . . . 2 . Reactor 2 | . . . . . . 2 . Propulsion 30 | 2 9 . 12 . 3 3 1 Treads 17 | 2 5 . 8 . 1 1 . Leg 2 | . . . . . . 1 1 Wheel 11 | . 4 . 4 . 2 1 . Hover . | . . . . . . . . Flight . | . . . . . . . . Utility 63 | 2 7 4 5 . 4 37 4 Device 31 | 1 2 2 2 . 1 21 2 Storage 6 | 1 3 . . . 1 1 . Processor 6 | . . . 1 . . 5 . Hackware 3 | . . . . . 1 2 . Protection 17 | . 2 2 2 . 1 8 2 Artifact . | . . . . . . . . Weapon 39 | 2 6 2 9 . 7 9 4 Energy Gun . | . . . . . . . . Energy Cannon 4 | . . . . . . 2 2 Ballistic Gun 14 | 2 5 1 6 . . . . Ballistic Cannon . | . . . . . . . . Launcher 7 | . . 1 1 . 1 2 2 Special Weapon . | . . . . . . . . Impact Weapon . | . . . . . . . . Slashing Weapon 8 | . 1 . 2 . 2 3 . Piercing Weapon 6 | . . . . . 4 2 . Special Melee Weapon . | . . . . . . . . Unidentified Prototypes 4 | . . . . . 1 2 1 Corrupted Parts 1 | . . . . . 1 . . System Corruption 4 | . . . . . 4 . . Parts Lost 16 | . . . 3 . . 9 4 Power 3 | . . . 1 . . 1 1 Propulsion 2 | . . . . . . 1 1 Utility 5 | . . . 1 . . 2 2 Weapon 6 | . . . 1 . . 5 . Highest Loss Streak 3 | . . . 2 . . 3 3 To Critical Strikes 1 | . . . . . . . 1 Average Slot Usage (%) 91 | . 99 100 99 100 93 77 75 Engine 10 | . 14 14 13 14 13 1 . Treads 10 | . 20 . 18 14 7 3 . Leg 1 | . . . . . . 3 4 Wheel 10 | . 7 28 9 14 20 1 . Device 11 | . 13 12 10 14 7 12 16 Storage 11 | . 14 14 14 14 13 5 5 Processor 5 | . . . 2 . . 16 17 Hackware 1 | . . . . . . 5 5 Protection 2 | . . 1 . . . 7 5 Ballistic Gun 15 | . 27 28 26 28 12 . . Slashing Weapon 3 | . . . 1 . 6 6 5 Piercing Weapon 2 | . . . . . 8 . . Peak Build Rating 94 | 7 12 13 32 32 28 94 91 Average Rating 36 | 5 11 12 16 26 21 81 83 On Entrance 22 | . 7 12 13 32 17 28 74 Naked Turns . | . . . . . . . . Heaviest Build 127 | 12 96 96 97 94 96 127 65 Greatest Support 62 | 40 40 20 40 20 22 62 50 Greatest Overweight (x) 20 | . 4 4 9 4 7 6 20 Average Overweight (x) 3 | . 1 4 6 4 5 2 1 Largest Inventory Capacity 25 | 8 25 25 25 25 25 25 15 Average Capacity 21 | 7 17 25 25 25 24 17 15 Most Carried 25 | 4 19 20 25 25 25 25 15 Average Carried 18 | 3 13 19 22 21 20 15 12 Final Capacity 25 | 8 25 25 25 25 25 15 15 Final Carried 25 | 4 19 20 25 18 25 15 11 Class Distribution -------------------- 68% | Mutant 24% | Scavenger-Mutant 4% | Derelict-Gladiator Dominant Class ---------------- Mutant | -10/Materials Mutant | -10/Mines Mutant | -10/Subcaves Scavenger-Mutant | -7/Recycling Mutant | -7/Scraptown Mutant | -5/Factory Mutant | -5/Upper Caves Resources | -11 -10 -10 -10 -7 -7 -5 -5 ----------- Run | Yrd Mat Min Sub Rec Scr Fac Upp Matter Collected 2479 | 307 521 154 509 54 148 744 42 Remotely . | . . . . . . . . Salvage Created 3398 | 131 385 78 238 67 . 2429 70 Parts 198 | 11 28 16 19 2 . 115 7 Haulers Intercepted 1 | . . . . . . 1 . Recyclers Shooed 3 | 1 . . . 1 . 1 . Parts Field Recycled . | . . . . . . . . Retrieved Matter . | . . . . . . . . Parts Self-Destructed 27 | . . . 15 . 4 . 8 Prevented . | . . . . . . . . Kills | -11 -10 -10 -10 -7 -7 -5 -5 ------- Run | Yrd Mat Min Sub Rec Scr Fac Upp Combat Hostiles Destroyed 58 | . 9 7 7 . . 29 6 Melee 23 | . . . . . . 22 1 Guns 20 | . 9 4 7 . . . . AOE 15 | . . 3 . . . 7 5 Classes Destroyed 14 | 1 5 . 2 . . 6 . Worker 2 | . 1 . . . . 1 . Builder 1 | . . . . . . 1 . Tunneler 6 | 5 . . . . . 1 . Hauler 1 | . . . . . . 1 . Recycler 6 | . . . . . . 6 . Operator 2 | . 1 . . . . 1 . Turret 2 | . . . 2 . . . . Watcher 5 | . 3 . . . . 2 . Swarmer 21 | . 3 7 1 . . 4 6 Grunt 17 | . 6 . . . . 11 . Duelist 1 | . . . . . . 1 . Hunter 2 | . . . . . . 2 . Programmer 11 | . . . . . . 11 . Subdweller 6 | . . . 6 . . . . Best Kill Streak 8 | 2 6 3 2 . . 8 3 Combat Bots Only 5 | . 5 3 2 . . 4 3 Max Kills in Single Turn 3 | 1 1 3 1 . . 2 2 Gunslinging . | . . . . . . . . Exploded 3 | . . 3 . . . 2 2 Melee 1 | . . . . . . 1 1 Uniques/NPCs Destroyed . | . . . . . . . . Combat | -11 -10 -10 -10 -7 -7 -5 -5 -------- Run | Yrd Mat Min Sub Rec Scr Fac Upp Hostile Shots Fired 419 | . 30 11 59 . . 251 68 Missed 120 | . 7 6 12 . . 68 27 Damage Taken 5712 | . 226 41 718 . 68 3748 911 Core 901 | . 20 7 151 . . 550 173 Absorbed by Shields 21 | . . . . . . 21 . Ignored by Resistances 201 | . . . . . . 191 10 Regen/Repaired (Parts) 336 | . 182 . . . . 154 . Core Remaining (%) 64 | 100 . . . . 28 . . Volleys Fired 124 | 24 32 8 37 10 . 6 7 Largest 2 | 2 2 2 2 2 . 1 1 Hottest 85 | 40 46 46 60 60 . 85 81 Shots Fired 228 | 48 64 15 65 20 . 9 7 Gun 201 | 48 64 14 55 20 . . . Cannon 5 | . . . . . . 4 1 Launcher 22 | . . 1 10 . . 5 6 Special . | . . . . . . . . Kinetic 201 | 48 64 14 55 20 . . . Thermal 2 | . . . . . . 2 . Explosive 22 | . . 1 10 . . 5 6 Electromagnetic 3 | . . . . . . 2 1 Robot Hit Streak 11 | 9 6 4 11 4 . 1 1 Robot Miss Streak 7 | 3 7 2 2 2 . 2 . Penetration Max . | . . . . . . . . Secondary Targets 1 | . . . 1 . . . . Max Gunslinging Chain 1 | . . . 1 . . . . Shots Hit Robots 233 | 30 31 8 41 4 . 117 2 Core Hits 110 | 9 15 7 23 1 . 50 5 Critical Kills . | . . . . . . . . Critical Parts Destroyed . | . . . . . . . . Critical Strikes 3 | . . . . . . 3 . Impale 1 | . . . . . . 1 . Melee Attacks 182 | . 3 . 11 . . 154 14 Impact . | . . . . . . . . Slashing 178 | . 3 . 11 . . 150 14 Piercing 4 | . . . . . . 4 . Sneak Attacks 16 | . . . . . . 16 . Combat Hostiles . | . . . . . . . . Follow-up Attacks 10 | . . . . . . 10 . Damage Inflicted 9274 | 299 470 241 919 76 . 6732 537 Guns 1676 | 297 470 121 712 76 . . . Cannons . | . . . . . . . . Explosions 1700 | . . 120 207 . . 884 489 Melee 5896 | . . . . . . 5848 48 Ramming 2 | 2 . . . . . . . Kinetic 1676 | 297 470 121 712 76 . . . Thermal . | . . . . . . . . Explosive 1700 | . . 120 207 . . 884 489 Electromagnetic . | . . . . . . . . Impact . | . . . . . . . . Slashing 5808 | . . . . . . 5760 48 Piercing 88 | . . . . . . 88 . Highest Corruption 16 | . . . . . 4 16 16 Average Corruption 12 | . . . . . 4 11 16 Corruption Purged . | . . . . . . . . Corruption Blocked . | . . . . . . . . Effects 148 | . . . . . 7 105 36 Message Errors 35 | . . . . . 1 25 9 Matter Fused 46 | . . . . . 1 38 7 Heat Flow Errors 18 | . . . . . 1 6 11 Energy Discharges 14 | . . . . . . 12 2 Parts Rejected 1 | . . . . . . 1 . Data Loss (minor) 18 | . . . . . 3 13 2 Data Loss (major) 4 | . . . . . 1 3 . Misfires 3 | . . . . . . 3 . Alerts 8 | . . . . . . 3 5 Misdirections 1 | . . . . . . 1 . Overload Shots . | . . . . . . . . Overflow Damage 740 | . . . 3 . . 691 46 Projectiles . | . . . . . . . . Explosions 45 | . . . 3 . . 19 23 Melee 695 | . . . . . . 672 23 Knockbacks . | . . . . . . . . Impact . | . . . . . . . . Kinetic . | . . . . . . . . Secondary . | . . . . . . . . Self-Inflicted Damage 231 | . . . 10 . . 43 178 Shots 6 | . . . 1 . . 2 3 Rammed 2 | 1 1 . . . . . . Targets Rammed 2 | 1 1 . . . . . . Kicked . | . . . . . . . . Crushed . | . . . . . . . . Highest Temperature 498 | . 72 28 . . 258 193 498 Average Temperature 71 | . 23 10 . . 133 77 135 Received Heat Transfer 642 | . 72 . 81 . . 399 90 Effects 3 | . . . . . . . 3 Interference 3 | . . . . . . . 3 Siege Activations . | . . . . . . . . Robots Corrupted . | . . . . . . . . Combat Hostiles . | . . . . . . . . Parts Fried . | . . . . . . . . Impact Corruptions . | . . . . . . . . Robots Melted . | . . . . . . . . Combat Hostiles . | . . . . . . . . Parts Melted 2 | . . . 1 . . 1 . Heat Transferred . | . . . . . . . . Parts Sabotaged . | . . . . . . . . Parts Stolen . | . . . . . . . . Parts Stripped . | . . . . . . . . Power Chain Reactions . | . . . . . . . . Alert | -11 -10 -10 -10 -7 -7 -5 -5 ------- Run | Yrd Mat Min Sub Rec Scr Fac Upp Peak Influence 310 | 25 162 239 . 266 . 310 . Initial 96 | . 16 9 . 96 . . . Average 93 | 8 27 145 . 151 . 106 . Maximum Alert Level 1 | . . 1 . 1 . 1 . Low Security (%) 88 | 100 100 55 . 63 . 95 . Level 1 11 | . . 44 . 36 . 4 . Level 2 . | . . . . . . . . Level 3 . | . . . . . . . . Level 4 . | . . . . . . . . Level 5 . | . . . . . . . . High Security . | . . . . . . . . Max Security . | . . . . . . . . Squads Dispatched 12 | . 3 . . . . 9 . Investigation . | . . . . . . . . Extermination 6 | . . . . . . 6 . Reinforcement 6 | . 3 . . . . 3 . Assault . | . . . . . . . . Garrison . | . . . . . . . . Intercept . | . . . . . . . . Searches Triggered . | . . . . . . . . Construction Impeded . | . . . . . . . . Haulers Reinforced . | . . . . . . . . Active Scanning Responses . | . . . . . . . . Cargo Convoy Interrupts 1 | . . . . . . 1 . Stealth | -11 -10 -10 -10 -7 -7 -5 -5 --------- Run | Yrd Mat Min Sub Rec Scr Fac Upp Distress Signals 2 | . . . . . . 2 . Communications Jammed . | . . . . . . . . Distress Signals . | . . . . . . . . Times Spotted 100 | . 20 9 10 . . 49 12 Peak Tracking Total 5 | . 4 3 2 . . 5 4 Tactical Retreats 10 | . . . 4 . . 5 1 Traps | -11 -10 -10 -10 -7 -7 -5 -5 ------- Run | Yrd Mat Min Sub Rec Scr Fac Upp Traps Triggered 7 | . 3 . . . 1 2 1 Indirectly . | . . . . . . . . Trap Hack Attempts . | . . . . . . . . Triggered . | . . . . . . . . Disarmed . | . . . . . . . . Reprogrammed . | . . . . . . . . Reused . | . . . . . . . . Traps Extracted . | . . . . . . . . Installed 1 | . . . . . 1 . . Triggered 6 | . . . 4 . . 2 . Most Traps Carried 1 | . . . 1 1 1 . . Machines | -11 -10 -10 -10 -7 -7 -5 -5 ---------- Run | Yrd Mat Min Sub Rec Scr Fac Upp Machines Disabled 11 | . . 1 4 1 . 2 3 Max in Single Turn 2 | . . . 2 1 . 1 2 Machines Repaired . | . . . . . . . . Machines Dismantled . | . . . . . . . . Machines Sabotaged . | . . . . . . . . Overloaded Fab Kills . | . . . . . . . . Hacking | -11 -10 -10 -10 -7 -7 -5 -5 --------- Run | Yrd Mat Min Sub Rec Scr Fac Upp Machines Accessed 31 | . 4 1 4 11 3 6 2 Terminals 11 | . 3 . . 6 . 2 . Fabricators . | . . . . . . . . Repair Stations 4 | . 1 . . . . 3 . Recycling Units 6 | . . . . 5 . 1 . Scanalyzers . | . . . . . . . . Garrison Access . | . . . . . . . . Total Hacks 76 | . 16 1 8 22 12 15 2 Successful 54 | . 10 1 8 12 12 9 2 Failed 22 | . 6 . . 10 . 6 . Catastrophic 4 | . . . . 3 . 1 . Database Lockouts . | . . . . . . . . Manual 34 | . 9 . . 20 . 5 . Terminals 28 | . 9 . . 14 . 5 . Fabricators . | . . . . . . . . Repair Stations 14 | . 7 . . . . 7 . Recycling Units 11 | . . . . 8 . 3 . Scanalyzers . | . . . . . . . . Garrison Access . | . . . . . . . . Terminal Hacks 27 | . 1 1 8 . 12 3 2 Record 9 | . . . 5 . 4 . . Robot Analysis 8 | . 1 . . . 7 . . Open Door 5 | . . 1 1 . 1 . 2 Branch Access Points 1 | . . . . . . 1 . Unreport Threat 1 | . . . . . . 1 . Locate Traps 1 | . . . . . . 1 . Derelict Proto ID Bank 1 | . . . 1 . . . . Release Object 1 | . . . 1 . . . . Fabricator Hacks . | . . . . . . . . Repair Station Hacks 11 | . 6 . . . . 5 . Scan Component 6 | . 3 . . . . 3 . Repair 5 | . 3 . . . . 2 . Recycling Unit Hacks 1 | . . . . . . 1 . Retrieve Components 1 | . . . . . . 1 . Scanalyzer . | . . . . . . . . Garrison Access Hacks . | . . . . . . . . Unauthorized Hacks 15 | . 3 . . 12 . . . Terminals 10 | . 3 . . 7 . . . Assimilate 1 | . 1 . . . . . . Botnet 1 | . . . . 1 . . . Skim 8 | . 2 . . 6 . . . Fabricators . | . . . . . . . . Repair Stations . | . . . . . . . . Recycling Units 5 | . . . . 5 . . . Tunnel 5 | . . . . 5 . . . Scanalyzers . | . . . . . . . . Garrison Access . | . . . . . . . . Data Cores Recovered . | . . . . . . . . Used . | . . . . . . . . Hacking Detections 14 | . 4 . . 5 . 5 . Full Trace Events 2 | . . . . 2 . . . Feedback Events . | . . . . . . . . Feedback Blocked . | . . . . . . . . Robot Schematics Acquired . | . . . . . . . . Robots Built . | . . . . . . . . Authchips . | . . . . . . . . Time . | . . . . . . . . Total Robot Build Rating . | . . . . . . . . Part Schematics Acquired . | . . . . . . . . Parts Built . | . . . . . . . . Authchips . | . . . . . . . . Time . | . . . . . . . . Total Part Build Rating . | . . . . . . . . Parts Repaired 5 | . 3 . . . . 2 . Time 144 | . 78 . . . . 66 . Parts Recycled . | . . . . . . . . Recycled Matter . | . . . . . . . . Retrieved Matter . | . . . . . . . . Retrieved Components 10 | . . . . . . 10 . Parts Scanalyzed . | . . . . . . . . Part Schematics Acquired . | . . . . . . . . Parts Damaged . | . . . . . . . . Bothacking | -11 -10 -10 -10 -7 -7 -5 -5 ------------ Run | Yrd Mat Min Sub Rec Scr Fac Upp Used RIF Installer . | . . . . . . . . Robots Hacked . | . . . . . . . . Non-combat . | . . . . . . . . Combat . | . . . . . . . . Robot Hacks Applied . | . . . . . . . . Relay Couplers Released . | . . . . . . . . Fabnet Peak Effective % . | . . . . . . . . Robots Rewired . | . . . . . . . . Allies Hacked . | . . . . . . . . Hacks Repelled . | . . . . . . . . Allies | -11 -10 -10 -10 -7 -7 -5 -5 -------- Run | Yrd Mat Min Sub Rec Scr Fac Upp Total Allies 1 | . . 1 . . . . . Largest Group 1 | . . 1 . . . . . Highest-Rated Group 31 | . . 31 . . . . . Highest-Rated Ally 31 | . . 31 . . . . . Total Orders . | . . . . . . . . Ally Attacks 4 | . . 4 . . . . . Total Damage 63 | . . 63 . . . . . Kills 1 | . . 1 . . . . . Allies Corrupted . | . . . . . . . . Allies Melted . | . . . . . . . . Intel | -11 -10 -10 -10 -7 -7 -5 -5 ------- Run | Yrd Mat Min Sub Rec Scr Fac Upp Robot Analysis Total 8 | . 1 . . . 7 . . Derelict Logs Recovered 8 | . . 1 1 . 5 . 1 Drone Launches . | . . . . . . . . Drone Recoveries . | . . . . . . . . Exploration | -11 -10 -10 -10 -7 -7 -5 -5 ------------- Run | Yrd Mat Min Sub Rec Scr Fac Upp Turns Passed 13420 | 240 1441 563 2960 870 3503 2786 1057 Spaces Moved 6500 | 100 754 311 1097 554 2112 1171 401 Core 3 | 2 . . . . . . 1 Treads 894 | 98 514 . 282 . . . . Legs 1234 | . . . . . . 834 400 Wheels 4369 | . 240 311 815 554 2112 337 . Hover . | . . . . . . . . Flight . | . . . . . . . . Fastest Speed 50 | 50 140 140 140 150 90 120 140 Average Speed 180 | 157 154 140 233 150 162 184 248 Slowest Speed 1050 | 160 240 140 360 150 195 250 1050 Overloaded Moves . | . . . . . . . . Propulsion Burnouts . | . . . . . . . . Robots Hopped . | . . . . . . . . Cave-ins Triggered . | . . . . . . . . Exploration Rate (%) 58 | 6 85 55 50 98 88 33 50 Regions Visited 7 Branch Regions 5 Pre-discovered Areas 10 | . . 1 1 5 3 . . Known Exits Taken 1 | . . . . . . 1 . Unknown Exits Taken 6 | 1 1 1 1 1 1 . . Scrap Searched 9 | . . 1 4 . 4 . . Spaces Dug 113 | . 3 . . 1 . 54 55 Terrain Destroyed 232 | . 3 6 28 2 . 80 113 Melee 36 | . 3 . . . . 21 12 Projectile 4 | . . . . 2 . 2 . AOE 192 | . . 6 28 . . 57 101 Terrain Rammed . | . . . . . . . . Walls Destroyed . | . . . . . . . . Machines Disabled . | . . . . . . . . Actions | -11 -10 -10 -10 -7 -7 -5 -5 --------- Run | Yrd Mat Min Sub Rec Scr Fac Upp Total 7774 | 135 966 423 1419 574 2196 1624 437 Wait 624 | . 132 98 218 . . 172 4 Move 6493 | 99 753 310 1096 553 2111 1170 401 Hop . | . . . . . . . . Pick Up 103 | 4 17 1 10 9 33 27 2 Fast Attach 30 | 7 6 . 1 . 5 10 1 Attach 26 | . . . 3 . 1 18 4 Detach 16 | . . . 1 . 6 9 . Swap 87 | . 18 6 23 . 9 27 4 Drop 86 | . 4 . 19 2 30 31 . Fire 124 | 24 32 8 37 10 . 6 7 Melee 170 | . 3 . 11 . . 142 14 Ram . | . . . . . . . . Kick . | . . . . . . . . Crush 2 | 1 1 . . . . . . Escape Stasis 12 | . . . . . . 12 . Rewire . | . . . . . . . . Trap 1 | . . . . . 1 . . Miscellaneous . | . . . . . . . . Route ------- -11/Scrapyard -10/Materials (discovered 5 exits: [*Mat x3] / *Min / *Sub) -10/Mines (discovered 2 exits: [*Mat] / *Sub) -10/Subcaves (discovered 2 exits: [*Mat] / *Rec) -7/Recycling (discovered 2 exits: *Fac / *Scr) -7/Scraptown (discovered 2 exits: *Fac x2) -5/Factory (discovered 2 exits: *Upp x2) -5/Upper Caves (discovered 1 exit: Upp) History --------- Turn | Location | Event 48 | -11/Scrapyard | Discovered new exit (range 14) 241 | -11/Scrapyard | Entered Materials 333 | -10/Materials | Build established: Mutant 671 | -10/Materials | Discovered new exit (range 6) 770 | -10/Materials | Repaired Lgt. Armor Plating 841 | -10/Materials | Derelicts attacked the area 847 | -10/Materials | Repaired Grenade Launcher 874 | -10/Materials | Repaired Lgt. Treads 1243 | -10/Materials | Discovered new exit (range 15) 1412 | -10/Materials | Discovered new exit (range 14) 1640 | -10/Materials | Discovered new exit (range 3) 1645 | -10/Materials | Discovered new exit (range 16) 1682 | -10/Materials | Entered Mines 1732 | -10/Mines | Escorted by a lone wolf Derelict 1813 | -10/Mines | Discovered new exit (range 15) 1956 | -10/Mines | Learned location of Zion (-6) 1975 | -10/Mines | Met a Derelict who couldn't figure out how to use a Trap Extractor 2016 | -10/Mines | Assembled infested the area 2021 | -10/Mines | Assisted by a Guerilla fighting off Assembled 2234 | -10/Mines | Discovered new exit (range 6) 2245 | -10/Mines | Entered Subcaves 2249 | -10/Subcaves | Ambushed by Subdwellers from Twisted Machinery 2277 | -10/Subcaves | Core integrity fell below 50% 2928 | -10/Subcaves | Visited 4L-MR0's lab 2947 | -10/Subcaves | Found Gun Armor 3146 | -10/Subcaves | Visited Clippyterm 3152 | -10/Subcaves | Learned location of Section 7 (-3) 3152 | -10/Subcaves | Learned Research machine intel 3709 | -10/Subcaves | A swath of the cavern ceiling suddenly collapsed 3720 | -10/Subcaves | Learned Materials stockpile data 3840 | -10/Subcaves | Discovered new exit (range 10) 3941 | -10/Subcaves | Shifting Twisted Machinery released Sub. Monowheel 3980 | -10/Subcaves | Shifting Twisted Machinery released Sub. Beam Cannon 4096 | -10/Subcaves | Discovered new exit (range 11) 4371 | -10/Subcaves | Disturbed a concealed Subdweller 4540 | -10/Subcaves | Build established: Scavenger-Mutant 4786 | -10/Subcaves | Found SUBCON Basin 5205 | -10/Subcaves | Entered Recycling 5667 | -7/Recycling | Discovered new exit (range 13) 5751 | -7/Recycling | Scanned before Scraplab entrance 5772 | -7/Recycling | Entered Scraplab 6073 | -7/Recycling | Discovered new exit (range 2) 6075 | -7/Recycling | Entered Scraptown 6332 | -7/Scraptown | Heard Great Nut preacher, LISTEN AND RECITE! 6341 | -7/Scraptown | Visited UFD Registry 6341 | -7/Scraptown | Registered with UFD as "Gammanuts" 6361 | -7/Scraptown | Visited Awakened 6378 | -7/Scraptown | Visited The Evicted 6391 | -7/Scraptown | Visited CPS Storage 6406 | -7/Scraptown | Visited Scrapoid Research Area 6420 | -7/Scraptown | Visited Red Mages 6439 | -7/Scraptown | Visited Cave Peace 6680 | -7/Scraptown | Scanned Subdweller tech in exchange for log data 6683 | -7/Scraptown | Learned Factory non-interactive machine intel 6684 | -7/Scraptown | Learned location of Warlord (-4) 6686 | -7/Scraptown | Learned location of Extension (-6) 6687 | -7/Scraptown | Learned location of Testing (-2) 6689 | -7/Scraptown | Learned 8 Factory zone layouts 6705 | -7/Scraptown | Discovered new exit (range 11) 6736 | -7/Scraptown | Guru changed UFD alias to "Deathframe" 6858 | -7/Scraptown | Visited Assassins FH 6910 | -7/Scraptown | Visited Scrap Suit Storage 6937 | -7/Scraptown | Visited Sword Containment 6963 | -7/Scraptown | Visited Chapter 10 6984 | -7/Scraptown | Visited Junk Repository 7003 | -7/Scraptown | Visited Analyses Database 7022 | -7/Scraptown | Visited Abandonware Association 7038 | -7/Scraptown | Learned abandonware demo "REVENGE.EXE" 7069 | -7/Scraptown | Visited Junk Repository 7089 | -7/Scraptown | Visited Botcube Research 7109 | -7/Scraptown | Visited Scrapoid Pod Storage 7489 | -7/Scraptown | Visited Modified Component R&D 7826 | -7/Scraptown | Build established: Mutant 8029 | -7/Scraptown | Warned about trapping Scraptown 8293 | -7/Scraptown | Discovered new exit (range 3) 8301 | -7/Scraptown | System corruption cleaned by C-Scrubber 8454 | -7/Scraptown | Delivered Scrap Shield to a Scientist 9454 | -7/Scraptown | Found Scrap Suit 9578 | -7/Scraptown | Entered Factory 9578 | -5/Factory | Evolved 10 slots: Propulsion x2, Utility x8 9580 | -5/Factory | Loaded intel: 179 non-interactive machine locations 9644 | -5/Factory | Attached Gun Armor, gained temporary slots: Weapon x2 9655 | -5/Factory | Repaired Greatsword 9754 | -5/Factory | Repaired Med. Insulated Plating? 9890 | -5/Factory | Build established: Derelict-Gladiator 10127 | -5/Factory | System corruption reached 10% 10323 | -5/Factory | Lost 3 parts (1u2w) 10551 | -5/Factory | Build established: Mutant 11189 | -5/Factory | Found Imp. Powered Armor 11273 | -5/Factory | Identified exit to Upper Caves 11296 | -5/Factory | Spotted B-75 Beast 11474 | -5/Factory | Cargo convoy interrupted 12352 | -5/Factory | Core integrity fell below 50% 12364 | -5/Factory | Entered Upper Caves 12364 | -5/Upper Caves | Spotted B-75 Beast 12366 | -5/Upper Caves | UFD Scientist delivered a prototype 12369 | -5/Upper Caves | Found Prototype Protection 12369 | -5/Upper Caves | Identified Enh. Scrap Shield 12412 | -5/Upper Caves | Identified exit to Upper Caves 12806 | -5/Upper Caves | Lost 3 parts (1n2u) 13421 | -5/Upper Caves | Self-destructed Last Messages --------------- 12909_ Adv. Melee Analysis Suite temporarily disabled. 12935_ System corrupted: IFF burst signal emitted. 12970_ System corrupted: Energy discharge (-56). 12990_ S8B0WMCKAKAG8 WBH=C/ 13010_ System corrupted: Component data lost. 13014_ The unstable cave ceiling collapses. 13117_ SMXBLUYZXPFBFNH HZ WWVKDJHI